[Event "Titled Tuesday Blitz April 26 Early 2022"]
[White "Daneshvar, Bardiya"]
[Black "Bortnyk, Olexandr"]
[WhiteFideId "12576468"]
[BlackFideId "14120828"]
[WhiteElo "2330"]
[BlackElo "2723"]
[Result "0-1"]
[Round "11"]
[TimeControl "180+1"]
[Date "2022.04.26"]
[WhiteClock "0:00:02"]
[BlackClock "0:00:03"]

1. d4 {[%clk 0:03:00]}  d6 {[%clk 0:02:59]} 2. Nf3 {[%clk 0:02:59]}  Nf6 {[%clk 0:02:59]} 3. c4 {[%clk 0:02:59]}  g6 {[%clk 0:02:59]} 4. Nc3 {[%clk 0:03:00]}  Bf5 {[%clk 0:02:59]} 5. Qb3 {[%clk 0:02:59]}  Qc8 {[%clk 0:02:59]} 6. Nh4 {[%clk 0:02:58]}  Bd7 {[%clk 0:02:58]} 7. e4 {[%clk 0:02:58]}  Bg7 {[%clk 0:02:57]} 8. Be2 {[%clk 0:02:58]}  Nc6 {[%clk 0:02:54]} 9. Be3 {[%clk 0:02:48]}  e5 {[%clk 0:02:48]} 10. d5 {[%clk 0:02:46]}  Nd4 {[%clk 0:02:47]} 11. Qd1 {[%clk 0:02:46]}  c5 {[%clk 0:02:42]} 12. dxc6 {[%clk 0:02:43]}  Bxc6 {[%clk 0:02:25]} 13. f3 {[%clk 0:02:32]}  O-O {[%clk 0:02:15]} 14. O-O {[%clk 0:02:27]}  Nh5 {[%clk 0:02:05]} 15. g3 {[%clk 0:02:23]}  Qh3 {[%clk 0:02:04]} 16. Rf2 {[%clk 0:02:05]}  Nxg3 {[%clk 0:02:01]} 17. hxg3 {[%clk 0:02:02]}  Qxg3+ {[%clk 0:02:02]} 18. Ng2 {[%clk 0:02:02]}  f5 {[%clk 0:02:02]} 19. Bd3 {[%clk 0:01:44]}  fxe4 {[%clk 0:01:47]} 20. Bxe4 {[%clk 0:01:43]}  Bxe4 {[%clk 0:01:34]} 21. Nxe4 {[%clk 0:01:44]}  Nxf3+ {[%clk 0:01:33]} 22. Rxf3 {[%clk 0:01:43]}  Qxf3 {[%clk 0:01:34]} 23. Qxf3 {[%clk 0:01:37]}  Rxf3 {[%clk 0:01:35]} 24. Rd1 {[%clk 0:01:33]}  Bf8 {[%clk 0:01:25]} 25. Rd3 {[%clk 0:01:26]}  Bh6 {[%clk 0:01:20]} 26. Nxd6 {[%clk 0:01:16]}  b6 {[%clk 0:01:10]} 27. Ne4 {[%clk 0:01:13]}  Raf8 {[%clk 0:01:04]} 28. Nd2 {[%clk 0:01:04]}  Rh3 {[%clk 0:00:54]} 29. b4 {[%clk 0:00:40]}  Bf4 {[%clk 0:00:52]} 30. Nf1 {[%clk 0:00:33]}  Bg5 {[%clk 0:00:45]} 31. Rb3 {[%clk 0:00:21]}  Be7 {[%clk 0:00:41]} 32. c5 {[%clk 0:00:19]}  bxc5 {[%clk 0:00:41]} 33. bxc5 {[%clk 0:00:20]}  Rc8 {[%clk 0:00:40]} 34. Rb5 {[%clk 0:00:20]}  h5 {[%clk 0:00:39]} 35. Ra5 {[%clk 0:00:19]}  Rc7 {[%clk 0:00:39]} 36. Nd2 {[%clk 0:00:17]}  Bd8 {[%clk 0:00:29]} 37. Ra6 {[%clk 0:00:14]}  Kg7 {[%clk 0:00:28]} 38. Nc4 {[%clk 0:00:13]}  Bf6 {[%clk 0:00:25]} 39. Nd6 {[%clk 0:00:10]}  Kf8 {[%clk 0:00:18]} 40. c6 {[%clk 0:00:09]}  Be7 {[%clk 0:00:15]} 41. Nb5 {[%clk 0:00:09]}  Rc8 {[%clk 0:00:13]} 42. Nxa7 {[%clk 0:00:09]}  Rb8 {[%clk 0:00:08]} 43. c7 {[%clk 0:00:07]}  Rb1+ {[%clk 0:00:08]} 44. Ne1 {[%clk 0:00:05]}  Rxe1+ {[%clk 0:00:03]} 45. Kg2 {[%clk 0:00:05]}  Rhxe3 {[%clk 0:00:04]} 46. c8=Q+ {[%clk 0:00:05]}  Kg7 {[%clk 0:00:05]} 47. Qe6 {[%clk 0:00:03]}  R3e2+ {[%clk 0:00:05]} 48. Kh3 {[%clk 0:00:03]}  Re3+ {[%clk 0:00:04]} 49. Kg2 {[%clk 0:00:03]}  R3e2+ {[%clk 0:00:05]} 50. Kf3 {[%clk 0:00:03]}  e4+ {[%clk 0:00:04]} 51. Kf4 {[%clk 0:00:03]}  Rf2+ {[%clk 0:00:03]} 52. Ke5 {[%clk 0:00:03]}  Bf6+ {[%clk 0:00:03]} 53. Kd6 {[%clk 0:00:03]}  e3 {[%clk 0:00:02]} 54. Kd7 {[%clk 0:00:03]}  Rd1+ {[%clk 0:00:02]} 55. Rd6 {[%clk 0:00:02]}  e2 {[%clk 0:00:02]} 56. Nc6 {[%clk 0:00:01]}  e1=Q {[%clk 0:00:02]} 57. Nd8 {[%clk 0:00:01]}  Rxd6+ {[%clk 0:00:02]} 58. Qxd6 {[%clk 0:00:01]}  Qe7+ {[%clk 0:00:02]} 59. Qxe7+ {[%clk 0:00:01]}  Bxe7 {[%clk 0:00:03]} 60. Ne6+ {[%clk 0:00:02]}  Kf6 {[%clk 0:00:03]} 0-1


[Site "https://www.chess.com"]

[Event "Titled Tuesday Blitz April 26 Early 2022"]
[White "Djokic, Mihailo"]
[Black "Vakhlamov, Igor L."]
[WhiteFideId "976440"]
[BlackFideId "24126748"]
[WhiteElo "2202"]
[BlackElo "2401"]
[Result "1-0"]
[Round "11"]
[TimeControl "180+1"]
[Date "2022.04.26"]
[WhiteClock "0:00:37"]
[BlackClock "0:00:28"]

1. e4 {[%clk 0:03:00]}  c5 {[%clk 0:02:59]} 2. Nf3 {[%clk 0:02:59]}  Nc6 {[%clk 0:02:59]} 3. d4 {[%clk 0:02:59]}  cxd4 {[%clk 0:03:00]} 4. Nxd4 {[%clk 0:03:00]}  g6 {[%clk 0:03:00]} 5. Nc3 {[%clk 0:03:00]}  Bg7 {[%clk 0:03:00]} 6. Be3 {[%clk 0:03:01]}  Nf6 {[%clk 0:03:00]} 7. Bc4 {[%clk 0:03:01]}  O-O {[%clk 0:03:01]} 8. Bb3 {[%clk 0:03:01]}  a5 {[%clk 0:03:01]} 9. O-O {[%clk 0:03:01]}  Nxd4 {[%clk 0:03:01]} 10. Bxd4 {[%clk 0:03:00]}  d6 {[%clk 0:03:01]} 11. a4 {[%clk 0:02:57]}  Bd7 {[%clk 0:03:01]} 12. Re1 {[%clk 0:02:55]}  Bc6 {[%clk 0:03:00]} 13. f4 {[%clk 0:02:54]}  Nd7 {[%clk 0:02:34]} 14. Bxg7 {[%clk 0:02:52]}  Kxg7 {[%clk 0:02:35]} 15. Qd4+ {[%clk 0:02:52]}  f6 {[%clk 0:02:34]} 16. Nd5 {[%clk 0:02:50]}  Nc5 {[%clk 0:02:31]} 17. Rad1 {[%clk 0:02:46]}  Rc8 {[%clk 0:02:24]} 18. f5 {[%clk 0:02:42]}  Bxd5 {[%clk 0:02:23]} 19. Bxd5 {[%clk 0:02:39]}  Qb6 {[%clk 0:02:23]} 20. b3 {[%clk 0:02:30]}  Nd7 {[%clk 0:02:23]} 21. Be6 {[%clk 0:02:26]}  Qxd4+ {[%clk 0:02:11]} 22. Rxd4 {[%clk 0:02:26]}  Rfd8 {[%clk 0:02:12]} 23. Bxd7 {[%clk 0:02:19]}  Rxd7 {[%clk 0:02:12]} 24. c4 {[%clk 0:02:16]}  gxf5 {[%clk 0:02:12]} 25. exf5 {[%clk 0:02:16]}  Rc5 {[%clk 0:02:13]} 26. g4 {[%clk 0:02:11]}  Re5 {[%clk 0:02:05]} 27. Rxe5 {[%clk 0:02:11]}  fxe5 {[%clk 0:02:06]} 28. Rd5 {[%clk 0:02:11]}  b6 {[%clk 0:02:07]} 29. g5 {[%clk 0:02:06]}  Kf7 {[%clk 0:02:04]} 30. Kf2 {[%clk 0:02:06]}  e6 {[%clk 0:02:04]} 31. fxe6+ {[%clk 0:01:56]}  Kxe6 {[%clk 0:02:05]} 32. Rb5 {[%clk 0:01:55]}  Rb7 {[%clk 0:02:04]} 33. Kf3 {[%clk 0:01:45]}  Kf5 {[%clk 0:02:04]} 34. h4 {[%clk 0:01:42]}  Rb8 {[%clk 0:02:00]} 35. b4 {[%clk 0:01:37]}  axb4 {[%clk 0:02:01]} 36. a5 {[%clk 0:01:36]}  Ke6 {[%clk 0:01:29]} 37. axb6 {[%clk 0:01:34]}  Kd7 {[%clk 0:01:27]} 38. Ke4 {[%clk 0:01:27]}  Kc6 {[%clk 0:01:27]} 39. Rxb4 {[%clk 0:01:27]}  Kc5 {[%clk 0:01:27]} 40. Rb1 {[%clk 0:01:12]}  Kxc4 {[%clk 0:01:27]} 41. b7 {[%clk 0:01:06]}  Kc5 {[%clk 0:01:12]} 42. Kf5 {[%clk 0:00:52]}  Kc6 {[%clk 0:01:10]} 43. h5 {[%clk 0:00:51]}  Rf8+ {[%clk 0:01:01]} 44. Ke6 {[%clk 0:00:46]}  Rb8 {[%clk 0:01:01]} 45. g6 {[%clk 0:00:44]}  hxg6 {[%clk 0:01:02]} 46. hxg6 {[%clk 0:00:44]}  e4 {[%clk 0:01:03]} 47. g7 {[%clk 0:00:43]}  e3 {[%clk 0:00:47]} 48. Kf7 {[%clk 0:00:35]}  e2 {[%clk 0:00:33]} 49. g8=Q {[%clk 0:00:33]}  Rxb7+ {[%clk 0:00:32]} 50. Rxb7 {[%clk 0:00:32]}  e1=Q {[%clk 0:00:33]} 51. Qc8+ {[%clk 0:00:33]}  Kd5 {[%clk 0:00:33]} 52. Rb5+ {[%clk 0:00:33]}  Kd4 {[%clk 0:00:26]} 53. Qg4+ {[%clk 0:00:33]}  Kd3 {[%clk 0:00:26]} 54. Qf3+ {[%clk 0:00:33]}  Kc4 {[%clk 0:00:26]} 55. Qb3+ {[%clk 0:00:33]}  Kd4 {[%clk 0:00:26]} 56. Rd5+ {[%clk 0:00:34]}  Ke4 {[%clk 0:00:26]} 57. Qd3+ {[%clk 0:00:34]}  Kf4 {[%clk 0:00:27]} 58. Rf5+ {[%clk 0:00:35]}  Kg4 {[%clk 0:00:27]} 59. Qf3+ {[%clk 0:00:36]}  Kh4 {[%clk 0:00:28]} 60. Rh5# {[%clk 0:00:37]} 1-0


[Site "https://www.chess.com"]

[Event "Titled Tuesday Blitz April 26 Early 2022"]
[White "Dubov, Daniil"]
[Black "Nakamura, Hikaru"]
[WhiteFideId "24126055"]
[BlackFideId "2016192"]
[WhiteElo "2791"]
[BlackElo "2850"]
[Result "0-1"]
[Round "11"]
[TimeControl "180+1"]
[Date "2022.04.26"]
[WhiteClock "0:00:04"]
[BlackClock "0:00:09"]

1. d4 {[%clk 0:03:00]}  Nf6 {[%clk 0:02:58]} 2. c4 {[%clk 0:03:01]}  e6 {[%clk 0:02:58]} 3. Nf3 {[%clk 0:03:01]}  d5 {[%clk 0:02:58]} 4. g3 {[%clk 0:03:02]}  Be7 {[%clk 0:02:57]} 5. Bg2 {[%clk 0:03:03]}  O-O {[%clk 0:02:58]} 6. O-O {[%clk 0:03:03]}  dxc4 {[%clk 0:02:59]} 7. Qc2 {[%clk 0:03:03]}  b5 {[%clk 0:02:59]} 8. a4 {[%clk 0:03:01]}  Bb7 {[%clk 0:03:00]} 9. axb5 {[%clk 0:03:00]}  a6 {[%clk 0:03:00]} 10. Nc3 {[%clk 0:03:00]}  axb5 {[%clk 0:03:00]} 11. Rxa8 {[%clk 0:03:00]}  Bxa8 {[%clk 0:03:01]} 12. Nxb5 {[%clk 0:03:00]}  Bd5 {[%clk 0:03:02]} 13. Bf4 {[%clk 0:02:51]}  c5 {[%clk 0:03:02]} 14. dxc5 {[%clk 0:02:51]}  Qa5 {[%clk 0:03:02]} 15. Nc3 {[%clk 0:02:50]}  Qxc5 {[%clk 0:02:59]} 16. e4 {[%clk 0:02:48]}  Bb7 {[%clk 0:02:47]} 17. b4 {[%clk 0:02:48]}  Qc8 {[%clk 0:01:33]} 18. b5 {[%clk 0:02:32]}  Nbd7 {[%clk 0:01:32]} 19. Rc1 {[%clk 0:01:54]}  Nc5 {[%clk 0:01:31]} 20. Ne5 {[%clk 0:01:50]}  Rd8 {[%clk 0:01:21]} 21. Nxc4 {[%clk 0:01:31]}  Nd3 {[%clk 0:00:32]} 22. Nb6 {[%clk 0:01:30]}  Qc5 {[%clk 0:00:33]} 23. Be3 {[%clk 0:01:29]}  Qa3 {[%clk 0:00:31]} 24. Rd1 {[%clk 0:01:09]}  Ne5 {[%clk 0:00:31]} 25. Rxd8+ {[%clk 0:00:53]}  Bxd8 {[%clk 0:00:32]} 26. h3 {[%clk 0:00:36]}  Qa1+ {[%clk 0:00:32]} 27. Qd1 {[%clk 0:00:30]}  Qxd1+ {[%clk 0:00:32]} 28. Nxd1 {[%clk 0:00:31]}  Bxe4 {[%clk 0:00:32]} 29. Nc3 {[%clk 0:00:24]}  Bxg2 {[%clk 0:00:32]} 30. Kxg2 {[%clk 0:00:25]}  Kf8 {[%clk 0:00:30]} 31. Bd4 {[%clk 0:00:23]}  Nfd7 {[%clk 0:00:28]} 32. Nxd7+ {[%clk 0:00:21]}  Nxd7 {[%clk 0:00:29]} 33. Kf3 {[%clk 0:00:21]}  e5 {[%clk 0:00:27]} 34. Be3 {[%clk 0:00:20]}  f5 {[%clk 0:00:28]} 35. g4 {[%clk 0:00:18]}  g6 {[%clk 0:00:28]} 36. Ke2 {[%clk 0:00:18]}  Kf7 {[%clk 0:00:27]} 37. Kd3 {[%clk 0:00:18]}  Ke6 {[%clk 0:00:28]} 38. Kc4 {[%clk 0:00:17]}  Kd6 {[%clk 0:00:26]} 39. gxf5 {[%clk 0:00:17]}  gxf5 {[%clk 0:00:26]} 40. Na4 {[%clk 0:00:16]}  f4 {[%clk 0:00:16]} 41. Bc5+ {[%clk 0:00:15]}  Ke6 {[%clk 0:00:15]} 42. b6 {[%clk 0:00:15]}  e4 {[%clk 0:00:15]} 43. b7 {[%clk 0:00:13]}  Bc7 {[%clk 0:00:15]} 44. Bd4 {[%clk 0:00:12]}  Kd6 {[%clk 0:00:14]} 45. Nc5 {[%clk 0:00:07]}  Nxc5 {[%clk 0:00:12]} 46. Bxc5+ {[%clk 0:00:07]}  Kc6 {[%clk 0:00:12]} 47. Bd4 {[%clk 0:00:07]}  Kxb7 {[%clk 0:00:09]} 48. Kd5 {[%clk 0:00:08]}  e3 {[%clk 0:00:09]} 49. fxe3 {[%clk 0:00:08]}  f3 {[%clk 0:00:10]} 50. e4 {[%clk 0:00:04]}  Bb6 {[%clk 0:00:09]} 0-1


[Site "https://www.chess.com"]

[Event "Titled Tuesday Blitz April 26 Early 2022"]
[White "Eynullayev, Atilla"]
[Black "Piesik, Piotr"]
[WhiteFideId "13413570"]
[BlackFideId "1136194"]
[WhiteElo "1936"]
[BlackElo "2190"]
[Result "1-0"]
[Round "11"]
[TimeControl "180+1"]
[Date "2022.04.26"]
[WhiteClock "0:00:28"]
[BlackClock "0:00:45"]

1. e4 {[%clk 0:03:00]}  g6 {[%clk 0:02:57]} 2. d4 {[%clk 0:03:00]}  Bg7 {[%clk 0:02:57]} 3. Nc3 {[%clk 0:03:01]}  c6 {[%clk 0:02:58]} 4. Be3 {[%clk 0:03:01]}  d5 {[%clk 0:02:58]} 5. f3 {[%clk 0:03:01]}  dxe4 {[%clk 0:02:57]} 6. fxe4 {[%clk 0:03:01]}  Nf6 {[%clk 0:02:58]} 7. Nf3 {[%clk 0:02:57]}  Ng4 {[%clk 0:02:57]} 8. Qd2 {[%clk 0:02:57]}  Nxe3 {[%clk 0:02:56]} 9. Qxe3 {[%clk 0:02:57]}  Bg4 {[%clk 0:02:56]} 10. O-O-O {[%clk 0:02:55]}  Nd7 {[%clk 0:02:54]} 11. Kb1 {[%clk 0:02:55]}  Qb6 {[%clk 0:02:49]} 12. Bc4 {[%clk 0:02:54]}  O-O {[%clk 0:02:46]} 13. h3 {[%clk 0:02:54]}  Bxf3 {[%clk 0:02:46]} 14. gxf3 {[%clk 0:02:54]}  e5 {[%clk 0:02:44]} 15. Ne2 {[%clk 0:02:52]}  exd4 {[%clk 0:02:39]} 16. Nxd4 {[%clk 0:02:52]}  Ne5 {[%clk 0:02:34]} 17. Be2 {[%clk 0:02:52]}  Rad8 {[%clk 0:02:33]} 18. c3 {[%clk 0:02:52]}  Qc5 {[%clk 0:02:27]} 19. h4 {[%clk 0:02:46]}  Nc4 {[%clk 0:02:20]} 20. Bxc4 {[%clk 0:02:40]}  Qxc4 {[%clk 0:02:21]} 21. h5 {[%clk 0:02:39]}  c5 {[%clk 0:02:19]} 22. Ne2 {[%clk 0:01:41]}  b5 {[%clk 0:02:05]} 23. hxg6 {[%clk 0:01:37]}  hxg6 {[%clk 0:01:56]} 24. f4 {[%clk 0:01:38]}  Rfe8 {[%clk 0:01:48]} 25. e5 {[%clk 0:01:38]}  b4 {[%clk 0:01:25]} 26. b3 {[%clk 0:01:23]}  Qb5 {[%clk 0:01:24]} 27. c4 {[%clk 0:01:17]}  Qc6 {[%clk 0:01:24]} 28. Ng3 {[%clk 0:01:17]}  f6 {[%clk 0:01:11]} 29. Rxd8 {[%clk 0:00:49]}  Rxd8 {[%clk 0:01:11]} 30. f5 {[%clk 0:00:50]}  gxf5 {[%clk 0:01:03]} 31. Rg1 {[%clk 0:00:49]}  Kf7 {[%clk 0:00:55]} 32. Nxf5 {[%clk 0:00:38]}  Bf8 {[%clk 0:00:55]} 33. Qe2 {[%clk 0:00:28]}  Qd7 {[%clk 0:00:47]} 34. e6+ {[%clk 0:00:28]}  Qxe6 {[%clk 0:00:45]} 35. Qh5# {[%clk 0:00:28]} 1-0


[Site "https://www.chess.com"]

[Event "Titled Tuesday Blitz April 26 Early 2022"]
[White "Fernandez Hernandez, Gerardo"]
[Black "Carrasco Miranda, Andres"]
[WhiteFideId "2207400"]
[BlackFideId "3405990"]
[WhiteElo "2173"]
[BlackElo "2177"]
[Result "1-0"]
[Round "11"]
[TimeControl "180+1"]
[Date "2022.04.26"]
[WhiteClock "0:00:53"]
[BlackClock "0:00:01"]

1. e4 {[%clk 0:03:00]}  c5 {[%clk 0:02:59]} 2. d3 {[%clk 0:02:59]}  g6 {[%clk 0:02:58]} 3. g3 {[%clk 0:03:00]}  Bg7 {[%clk 0:02:58]} 4. Bg2 {[%clk 0:03:01]}  Nc6 {[%clk 0:02:58]} 5. f4 {[%clk 0:03:01]}  Rb8 {[%clk 0:02:48]} 6. Nf3 {[%clk 0:03:00]}  d6 {[%clk 0:02:48]} 7. O-O {[%clk 0:02:58]}  e6 {[%clk 0:02:47]} 8. c3 {[%clk 0:02:58]}  Nge7 {[%clk 0:02:48]} 9. Be3 {[%clk 0:02:57]}  O-O {[%clk 0:02:47]} 10. d4 {[%clk 0:02:58]}  cxd4 {[%clk 0:02:47]} 11. cxd4 {[%clk 0:02:59]}  d5 {[%clk 0:02:47]} 12. e5 {[%clk 0:02:59]}  Nf5 {[%clk 0:02:47]} 13. Bf2 {[%clk 0:02:59]}  h5 {[%clk 0:02:48]} 14. Nc3 {[%clk 0:02:58]}  b5 {[%clk 0:02:48]} 15. h3 {[%clk 0:02:53]}  b4 {[%clk 0:02:46]} 16. Na4 {[%clk 0:02:53]}  Ba6 {[%clk 0:02:46]} 17. Re1 {[%clk 0:02:50]}  Bb5 {[%clk 0:02:43]} 18. Nc5 {[%clk 0:02:44]}  Re8 {[%clk 0:02:43]} 19. g4 {[%clk 0:02:38]}  hxg4 {[%clk 0:02:44]} 20. hxg4 {[%clk 0:02:38]}  Nh6 {[%clk 0:02:42]} 21. Bh3 {[%clk 0:02:37]}  Bf8 {[%clk 0:01:37]} 22. Rc1 {[%clk 0:02:30]}  Na5 {[%clk 0:00:52]} 23. b3 {[%clk 0:02:27]}  Rc8 {[%clk 0:00:50]} 24. Qd2 {[%clk 0:02:23]}  Bxc5 {[%clk 0:00:46]} 25. dxc5 {[%clk 0:02:09]}  Nc6 {[%clk 0:00:45]} 26. Be3 {[%clk 0:02:02]}  d4 {[%clk 0:00:42]} 27. Nxd4 {[%clk 0:01:57]}  Nxd4 {[%clk 0:00:41]} 28. Qxd4 {[%clk 0:01:56]}  Bc6 {[%clk 0:00:33]} 29. Qxd8 {[%clk 0:01:41]}  Rcxd8 {[%clk 0:00:34]} 30. Rcd1 {[%clk 0:01:40]}  Bf3 {[%clk 0:00:30]} 31. Rxd8 {[%clk 0:01:36]}  Rxd8 {[%clk 0:00:30]} 32. f5 {[%clk 0:01:35]}  Nxg4 {[%clk 0:00:29]} 33. fxe6 {[%clk 0:01:27]}  Nxe5 {[%clk 0:00:13]} 34. Bg5 {[%clk 0:01:09]}  Rd3 {[%clk 0:00:07]} 35. e7 {[%clk 0:01:03]}  Bc6 {[%clk 0:00:04]} 36. Bg2 {[%clk 0:01:00]}  Be8 {[%clk 0:00:03]} 37. Rxe5 {[%clk 0:00:58]}  Rd1+ {[%clk 0:00:02]} 38. Kh2 {[%clk 0:00:57]}  Ra1 {[%clk 0:00:03]} 39. Re2 {[%clk 0:00:56]}  Kg7 {[%clk 0:00:02]} 40. Bf4 {[%clk 0:00:56]}  f6 {[%clk 0:00:02]} 41. c6 {[%clk 0:00:54]}  g5 {[%clk 0:00:02]} 42. c7 {[%clk 0:00:53]}  gxf4 {[%clk 0:00:01]} 43. c8=Q {[%clk 0:00:53]} 1-0


[Site "https://www.chess.com"]

[Event "Titled Tuesday Blitz April 26 Early 2022"]
[White "Gokerkan, Cem Kaan"]
[Black "Yeremyan, Alen"]
[WhiteFideId "6336760"]
[BlackFideId "13308998"]
[WhiteElo "2382"]
[BlackElo "2158"]
[Result "1-0"]
[Round "11"]
[TimeControl "180+1"]
[Date "2022.04.26"]
[WhiteClock "0:02:34"]
[BlackClock "0:01:45"]

1. e4 {[%clk 0:03:00]}  c5 {[%clk 0:02:54]} 2. Nf3 {[%clk 0:03:01]}  e6 {[%clk 0:02:34]} 3. c3 {[%clk 0:02:59]}  d5 {[%clk 0:02:33]} 4. exd5 {[%clk 0:03:00]}  exd5 {[%clk 0:02:34]} 5. d4 {[%clk 0:03:01]}  c4 {[%clk 0:02:34]} 6. b3 {[%clk 0:03:00]}  cxb3 {[%clk 0:02:35]} 7. axb3 {[%clk 0:03:01]}  Bd6 {[%clk 0:02:35]} 8. Bd3 {[%clk 0:03:01]}  Ne7 {[%clk 0:02:36]} 9. O-O {[%clk 0:03:02]}  O-O {[%clk 0:02:37]} 10. Re1 {[%clk 0:03:02]}  Bf5 {[%clk 0:02:37]} 11. Bg5 {[%clk 0:02:51]}  Bxd3 {[%clk 0:02:37]} 12. Qxd3 {[%clk 0:02:52]}  Nbc6 {[%clk 0:02:37]} 13. b4 {[%clk 0:02:52]}  a6 {[%clk 0:02:37]} 14. Nbd2 {[%clk 0:02:52]}  Qd7 {[%clk 0:02:37]} 15. Nb3 {[%clk 0:02:51]}  f6 {[%clk 0:02:36]} 16. Bh4 {[%clk 0:02:49]}  Nf5 {[%clk 0:02:36]} 17. Bg3 {[%clk 0:02:49]}  Bxg3 {[%clk 0:02:34]} 18. hxg3 {[%clk 0:02:49]}  Nd6 {[%clk 0:02:27]} 19. Nc5 {[%clk 0:02:49]}  Qf7 {[%clk 0:02:27]} 20. Nh4 {[%clk 0:02:40]}  Rae8 {[%clk 0:02:21]} 21. Nf5 {[%clk 0:02:36]}  Qg6 {[%clk 0:01:45]} 22. Nxd6 {[%clk 0:02:34]} 1-0


[Site "https://www.chess.com"]

[Event "Titled Tuesday Blitz April 26 Early 2022"]
[White "Hartikainen, Jarmo"]
[Black "Rosenberg, Evan S"]
[WhiteFideId "503134"]
[BlackFideId "2019299"]
[WhiteElo "2128"]
[BlackElo "2332"]
[Result "0-1"]
[Round "11"]
[TimeControl "180+1"]
[Date "2022.04.26"]
[WhiteClock "0:00:14"]
[BlackClock "0:00:10"]

1. e4 {[%clk 0:03:00]}  c6 {[%clk 0:02:56]} 2. d4 {[%clk 0:03:00]}  d5 {[%clk 0:02:57]} 3. Nc3 {[%clk 0:03:00]}  dxe4 {[%clk 0:02:57]} 4. Nxe4 {[%clk 0:03:01]}  Bf5 {[%clk 0:02:57]} 5. Ng3 {[%clk 0:03:01]}  Bg6 {[%clk 0:02:58]} 6. h4 {[%clk 0:03:01]}  h6 {[%clk 0:02:58]} 7. Bc4 {[%clk 0:03:01]}  Nf6 {[%clk 0:02:52]} 8. N1e2 {[%clk 0:03:00]}  Nd5 {[%clk 0:02:51]} 9. Nf4 {[%clk 0:02:51]}  Nxf4 {[%clk 0:02:35]} 10. Bxf4 {[%clk 0:02:50]}  e6 {[%clk 0:02:18]} 11. c3 {[%clk 0:02:44]}  Bd6 {[%clk 0:02:15]} 12. Qf3 {[%clk 0:02:36]}  Bxf4 {[%clk 0:02:06]} 13. Qxf4 {[%clk 0:02:36]}  O-O {[%clk 0:02:02]} 14. O-O {[%clk 0:02:19]}  Nd7 {[%clk 0:01:55]} 15. Rfe1 {[%clk 0:02:17]}  Qf6 {[%clk 0:01:50]} 16. Qxf6 {[%clk 0:02:11]}  Nxf6 {[%clk 0:01:50]} 17. a4 {[%clk 0:02:08]}  a5 {[%clk 0:01:40]} 18. Rad1 {[%clk 0:02:05]}  Rfd8 {[%clk 0:01:35]} 19. Bd3 {[%clk 0:01:57]}  Bxd3 {[%clk 0:01:33]} 20. Rxd3 {[%clk 0:01:58]}  b5 {[%clk 0:01:31]} 21. axb5 {[%clk 0:01:45]}  cxb5 {[%clk 0:01:32]} 22. Re5 {[%clk 0:01:39]}  Rd5 {[%clk 0:01:11]} 23. Rxd5 {[%clk 0:01:30]}  Nxd5 {[%clk 0:01:11]} 24. Ne4 {[%clk 0:01:30]}  b4 {[%clk 0:01:00]} 25. cxb4 {[%clk 0:01:17]}  axb4 {[%clk 0:00:58]} 26. Rb3 {[%clk 0:01:13]}  Ra1+ {[%clk 0:00:54]} 27. Kh2 {[%clk 0:01:13]}  Rd1 {[%clk 0:00:50]} 28. Nc5 {[%clk 0:01:01]}  Rxd4 {[%clk 0:00:50]} 29. Na6 {[%clk 0:01:01]}  Rxh4+ {[%clk 0:00:49]} 30. Kg3 {[%clk 0:01:01]}  g5 {[%clk 0:00:40]} 31. f3 {[%clk 0:01:00]}  Rc4 {[%clk 0:00:39]} 32. Kf2 {[%clk 0:00:59]}  h5 {[%clk 0:00:37]} 33. Kg3 {[%clk 0:00:48]}  Kg7 {[%clk 0:00:33]} 34. Kf2 {[%clk 0:00:47]}  h4 {[%clk 0:00:32]} 35. Kf1 {[%clk 0:00:40]}  f5 {[%clk 0:00:27]} 36. Ke2 {[%clk 0:00:38]}  g4 {[%clk 0:00:26]} 37. fxg4 {[%clk 0:00:38]}  fxg4 {[%clk 0:00:26]} 38. Kf2 {[%clk 0:00:38]}  Kg6 {[%clk 0:00:22]} 39. Kf1 {[%clk 0:00:32]}  Kg5 {[%clk 0:00:21]} 40. Kf2 {[%clk 0:00:32]}  Kf4 {[%clk 0:00:18]} 41. Ke1 {[%clk 0:00:25]}  Re4+ {[%clk 0:00:14]} 42. Kf1 {[%clk 0:00:20]}  Ne3+ {[%clk 0:00:12]} 43. Kg1 {[%clk 0:00:18]}  Nc2 {[%clk 0:00:11]} 44. Rxb4 {[%clk 0:00:14]}  Nxb4 {[%clk 0:00:11]} 45. Nxb4 {[%clk 0:00:12]}  Rxb4 {[%clk 0:00:11]} 46. Kf1 {[%clk 0:00:13]}  Rxb2 {[%clk 0:00:11]} 47. Ke1 {[%clk 0:00:13]}  Rxg2 {[%clk 0:00:10]} 48. Kd1 {[%clk 0:00:14]}  h3 {[%clk 0:00:10]} 0-1


[Site "https://www.chess.com"]

[Event "Titled Tuesday Blitz April 26 Early 2022"]
[White "Jaferian, Koosha"]
[Black "Xu, Yi"]
[WhiteFideId "12507440"]
[BlackFideId "8605564"]
[WhiteElo "2030"]
[BlackElo "2471"]
[Result "1/2-1/2"]
[Round "11"]
[TimeControl "180+1"]
[Date "2022.04.26"]
[WhiteClock "0:01:12"]
[BlackClock "0:00:49"]

1. Nf3 {[%clk 0:03:00]}  Nf6 {[%clk 0:02:58]} 2. b3 {[%clk 0:03:01]}  b5 {[%clk 0:02:53]} 3. g3 {[%clk 0:03:01]}  Bb7 {[%clk 0:02:54]} 4. Bg2 {[%clk 0:03:01]}  e6 {[%clk 0:02:53]} 5. Bb2 {[%clk 0:03:02]}  a6 {[%clk 0:02:52]} 6. O-O {[%clk 0:03:02]}  Be7 {[%clk 0:02:49]} 7. d4 {[%clk 0:03:02]}  O-O {[%clk 0:02:49]} 8. Nbd2 {[%clk 0:03:01]}  d6 {[%clk 0:02:48]} 9. c4 {[%clk 0:03:02]}  Nbd7 {[%clk 0:02:48]} 10. e3 {[%clk 0:03:01]}  c5 {[%clk 0:02:45]} 11. Qe2 {[%clk 0:03:02]}  Qc7 {[%clk 0:02:45]} 12. Rac1 {[%clk 0:03:01]}  b4 {[%clk 0:02:44]} 13. Rfd1 {[%clk 0:03:01]}  Rfd8 {[%clk 0:02:43]} 14. Ne1 {[%clk 0:03:00]}  Bxg2 {[%clk 0:02:42]} 15. Kxg2 {[%clk 0:03:01]}  a5 {[%clk 0:02:39]} 16. Qf3 {[%clk 0:02:44]}  a4 {[%clk 0:02:36]} 17. Nd3 {[%clk 0:02:42]}  Nf8 {[%clk 0:02:19]} 18. Ne4 {[%clk 0:02:20]}  axb3 {[%clk 0:02:02]} 19. axb3 {[%clk 0:02:19]}  Ng6 {[%clk 0:01:45]} 20. h4 {[%clk 0:02:12]}  Nxe4 {[%clk 0:01:28]} 21. Qxe4 {[%clk 0:02:13]}  Rab8 {[%clk 0:01:21]} 22. h5 {[%clk 0:02:10]}  Nf8 {[%clk 0:01:20]} 23. h6 {[%clk 0:02:08]}  Bf6 {[%clk 0:01:07]} 24. hxg7 {[%clk 0:02:07]}  Bxg7 {[%clk 0:01:07]} 25. dxc5 {[%clk 0:01:59]}  dxc5 {[%clk 0:01:02]} 26. Bxg7 {[%clk 0:01:55]}  Kxg7 {[%clk 0:01:03]} 27. Qg4+ {[%clk 0:01:42]}  Ng6 {[%clk 0:01:02]} 28. Nf4 {[%clk 0:01:42]}  Qe5 {[%clk 0:00:57]} 29. Nh5+ {[%clk 0:01:31]}  Kf8 {[%clk 0:00:53]} 30. Rxd8+ {[%clk 0:01:14]}  Rxd8 {[%clk 0:00:53]} 31. Rd1 {[%clk 0:01:15]}  Rxd1 {[%clk 0:00:49]} 32. Qxd1 {[%clk 0:01:16]}  Ke7 {[%clk 0:00:49]} 33. Qf3 {[%clk 0:01:12]} 1/2-1/2


[Site "https://www.chess.com"]